bitfinex/quotes_SOLUSD_20251013
["timestamp","ask_amount","ask_price","bid_price","bid_amount"]
[1760382661888,12.84911021,207.07,207.06,17.4955828]
[1760382662295,12.84911021,207.07,207.06,13.60951801]
[1760382665486,12.84911021,207.07,207.06,18.1855828]
[1760382668213,27.282,207.08,207.06,18.1855828]
[1760382668418,27.282,207.08,207.07,4.57606479]
[1760382668724,0.11174086,207.08,207.07,4.57606479]
[1760382669500,0.11174086,207.08,207.07,13.35606479]
[1760382670208,0.11174086,207.08,207.07,14.29928478]
[1760382670404,0.11174086,207.08,207.07,18.18534957]
[1760382672308,0.11174086,207.08,207.07,9.40534957]
[1760382672503,0.11174086,207.08,207.07,18.18534957]
[1760382673509,0.11174086,207.08,207.07,15.85134993]
[1760382674120,0.11174086,207.08,207.07,7.07134993]
[1760382674330,0.11174086,207.08,207.07,15.85134993]
[1760382674624,0.11174086,207.08,207.02,14.51273492]
[1760382674625,0.82174086,207.08,207.03,4.83021784]
[1760382674823,0.71,207.07,207.05,1.55206515]
[1760382675007,0.11174086,207.08,207.06,2.24206515]
[1760382675213,0.11174086,207.08,207.07,10.33206515]
[1760382675706,0.11174086,207.08,207.07,8.78]
[1760382676027,0.11174086,207.08,207.07,10.33206515]
[1760382676730,0.11174086,207.08,207.07,15.16134993]
[1760382677419,0.11174086,207.08,207.07,13.60928478]
[1760382678121,0.82174086,207.08,207.03,4.83011622]
[1760382678327,0.71,207.07,207.04,8.78]
[1760382678620,0.71,207.06,207.05,8.78]
[1760382679226,0.82174086,207.08,207.05,8.78]
[1760382679398,0.69,207.07,207.02,4.83037596]
[1760382679599,0.69,207.06,207.03,8.78]
[1760382679804,0.69,207.05,207.02,4.83037596]
[1760382680029,0.69,207.05,207.03,8.78]
[1760382680213,1.55206515,207.05,207.03,13.61017442]
[1760382680408,1.55206515,207.05,207.03,4.83017442]
[1760382680607,1.55206515,207.05,207.04,8.78]
[1760382681407,0.69,207.05,207.04,8.78]
[1760382682124,11.56647521,207.07,207.04,8.78]
[1760382682307,0.69,207.06,207.04,8.78]
[1760382682705,0.11174086,207.08,207.05,0.68]
[1760382683019,0.11174086,207.08,207.06,2.23206515]
[1760382683210,0.11174086,207.08,207.07,8.78]
[1760382683528,0.11174086,207.08,207.07,10.33206515]
[1760382683722,0.11174086,207.08,207.06,1.55206515]
[1760382683927,0.69,207.07,207.02,4.83045116]
[1760382684107,0.69,207.07,207.03,8.78]
[1760382684309,0.11174086,207.08,207.04,6.38204969]
[1760382684713,0.11174086,207.08,207.05,8.78]
[1760382684909,0.80174086,207.08,207.05,10.33206515]
[1760382685101,0.80174086,207.08,207.05,8.78]
[1760382686207,0.11174086,207.08,207.05,13.60968275]
[1760382686532,0.11174086,207.08,207.06,1.55206515]
[1760382686701,0.11174086,207.08,207.07,10.33206515]
[1760382686906,0.11174086,207.08,207.07,11.01206515]
[1760382688421,0.11174086,207.08,207.07,15.84134993]
[1760382689746,0.11174086,207.08,207.07,15.74215098]
[1760382690926,0.11174086,207.08,207.07,15.84134993]
[1760382693514,0.11174086,207.08,207.07,16.71431267]
[1760382694531,0.11174086,207.08,207.07,5.50928478]
[1760382694836,0.11174086,207.08,207.07,16.71431267]
[1760382695138,0.11174086,207.08,207.07,7.93431267]
[1760382695323,0.11174086,207.08,207.07,16.71431267]
[1760382696516,1e-08,207.08,207.07,14.28928478]
[1760382696722,1e-08,207.08,207.07,16.71431267]
[1760382697028,0.29607388,207.15,207.07,52.93394853]
[1760382697215,0.29607388,207.15,207.08,0.68]
[1760382697416,0.29607388,207.15,207.13,2.42502789]
[1760382697616,0.29607388,207.15,207.14,8.78]
[1760382698130,0.29607388,207.15,207.14,11.20502789]
[1760382698837,0.29607388,207.15,207.14,16.03268068]
[1760382699042,0.98607388,207.15,207.14,13.60765279]
[1760382699217,0.29607388,207.15,207.14,13.60765279]
[1760382701424,0.29607388,207.15,207.14,14.28765279]
[1760382701624,0.29607388,207.15,207.14,16.03268068]
[1760382702017,0.29607388,207.15,207.14,16.71268068]
[1760382702535,0.29607388,207.15,207.14,16.03268068]
[1760382704719,0.29607388,207.15,207.14,13.60765279]
[1760382704927,0.29607388,207.15,207.14,16.03268068]
[1760382705841,13.24237771,207.16,207.14,17.19544595]
[1760382706042,0.69,207.15,207.14,0.48276527]
[1760382706240,0.69,207.15,206.95,0.68]
[1760382706241,31.67647521,207.11,206.95,0.68]
[1760382706542,2.42502789,207.04,206.96,8.8]
[1760382706723,2.42502789,207.04,206.92,14.86828155]
[1760382706724,2.42502789,206.99,206.92,3.10502789]
[1760382707040,0.69,207.09,206.98,2.42502789]
[1760382707225,4.82765279,207.14,207.06,2.42502789]
[1760382707226,0.69,207.11,207.06,2.42502789]
[1760382707421,0.69,207.13,207.08,2.42502789]
[1760382707634,0.69,207.12,207.09,8.8]
[1760382707817,13.3015031,207.14,207.09,8.8]
[1760382708022,0.71,207.11,207.09,8.8]
[1760382709841,13.3015031,207.14,207.09,8.8]
[1760382710042,0.65,207.13,207.09,13.62880975]
[1760382710242,0.65,207.12,207.09,8.8]
[1760382711359,0.65,207.12,207.1,8.8]
[1760382712232,2.42502789,207.14,207.1,13.62850806]
[1760382712436,3.07502789,207.14,207.1,13.62850806]
[1760382713027,13.0512926,207.15,207.1,14.30850806]
[1760382713028,15.47632049,207.15,207.1,14.30850806]
[1760382713828,16.12632049,207.15,207.1,13.62850806]
[1760382714145,15.47632049,207.15,207.11,8.8]
[1760382714457,13.0512926,207.15,207.11,8.8]
[1760382715941,13.0512926,207.15,207.11,13.62833375]
[1760382716134,15.47632049,207.15,207.11,13.62833375]
[1760382717050,13.0512926,207.15,207.11,14.30833375]
[1760382717540,13.0512926,207.15,207.11,13.62833375]
[1760382717932,13.0512926,207.15,207.11,8.8]
[1760382718130,16.12632049,207.15,207.11,8.8]
[1760382718535,2.42502789,207.12,207.11,8.8]
[1760382718736,34.7515031,207.12,207.11,8.78]
[1760382718939,37.17653099,207.12,207.11,8.52]
[1760382719143,10.87647521,207.07,207.06,8.78]
[1760382719326,13.8615031,207.07,207.04,8.78]
[1760382719647,2.42502789,207.05,207.04,8.78]
[1760382720632,2.42502789,207.07,207.04,8.78]
[1760382721054,15.7055991,207.08,207.04,8.78]
[1760382721239,20.8,207.11,207.04,8.78]
[1760382721443,13.0512926,207.15,207.06,5.82591764]
[1760382721760,5.82591764,207.12,207.07,9.46]
[1760382722061,10.87647521,207.14,207.08,9.46]
[1760382722229,5.82591764,207.12,207.08,8.78]
[1760382722430,5.82591764,207.1,207.09,8.78]
[1760382723045,5.82591764,207.1,207.05,4.82975126]
[1760382723249,6.38591764,207.1,207.06,8.78]
[1760382723447,5.82591764,207.1,207.06,8.78]
[1760382723635,10.87647521,207.1,207.07,8.78]
[1760382724648,10.87647521,207.11,207.07,8.78]
[1760382724835,11.43647521,207.11,207.07,8.78]
[1760382725543,17.26239285,207.11,207.07,8.78]
[1760382726459,22.09074687,207.11,207.07,8.78]
[1760382727134,10.87647521,207.11,207.07,8.78]
[1760382727339,10.87647521,207.11,207.07,13.60928352]
[1760382727537,16.70239285,207.14,207.08,6.50591764]
[1760382727741,10.87647521,207.14,207.09,5.82591764]
[1760382727952,13.0512926,207.15,207.1,14.60591764]
[1760382728155,13.0512926,207.15,207.13,5.82591764]
[1760382728460,13.0512926,207.15,207.14,19.43357043]
[1760382728657,12.3312926,207.15,207.14,20.11357043]
[1760382728861,12.3312926,207.15,207.14,14.28765279]
[1760382729052,12.3312926,207.15,207.14,20.11357043]
[1760382729855,12.3312926,207.15,207.14,8.78]
[1760382730156,12.3312926,207.15,207.14,14.60591764]
[1760382730340,12.3312926,207.15,207.14,8.78]
[1760382730743,12.3312926,207.15,207.14,13.60765279]
[1760382731045,12.3312926,207.15,207.14,20.11357043]
[1760382734956,11.71122995,207.23,207.21,5.82591764]
[1760382735244,11.71122995,207.23,207.22,8.78]
[1760382736460,12.36122995,207.23,207.15,0.68]
[1760382736642,12.36122995,207.23,207.19,5.82591764]
[1760382736842,12.36122995,207.23,207.2,8.78]
[1760382737058,11.71122995,207.23,207.21,8.78]
[1760382737653,11.71122995,207.23,207.22,5.82591764]
[1760382738568,11.71122995,207.23,207.2,4.82604471]
[1760382738866,11.71122995,207.23,207.21,14.60591764]
[1760382739244,0.71,207.22,207.18,4.82672072]
[1760382739454,0.71,207.22,207.14,24.13821641]
[1760382739455,5.82591764,207.19,207.12,4.82811896]
[1760382739654,6.53591764,207.19,207.13,14.60591764]
[1760382739852,6.53591764,207.19,207.11,12.07054717]
[1760382740055,5.82591764,207.15,207.07,12.73273544]
[1760382740348,13.41873035,207.21,207.14,5.82591764]
[1760382740349,24.29520556,207.21,207.14,5.82591764]
[1760382740550,13.41873035,207.21,207.15,14.60591764]
[1760382740764,13.41873035,207.21,207.16,8.78]
[1760382740945,17.41239285,207.2,207.16,8.78]
[1760382741146,0.71,207.19,207.16,8.78]
[1760382741554,0.71,207.19,207.12,0.66]
[1760382741761,0.71,207.19,207.14,5.82591764]
[1760382741968,0.71,207.19,207.15,8.78]
[1760382742145,0.71,207.18,207.15,13.60739911]
[1760382742344,17.41239285,207.2,207.15,13.60739911]
[1760382742559,0.71,207.19,207.15,13.60739911]
[1760382743059,0.71,207.19,207.15,4.82739911]
[1760382743262,0.71,207.19,207.16,8.78]
[1760382743467,5.82591764,207.19,207.14,4.8276318]
[1760382743658,23.7752118,207.23,207.1,5.82591764]
[1760382743659,16.70239285,207.17,207.1,5.82591764]
[1760382743851,16.70239285,207.17,207.08,12.07230529]
[1760382743852,5.82591764,207.14,207.08,4.82905157]
[1760382744060,5.82591764,207.14,207.03,24.15017047]
[1760382744061,5.82591764,207.12,207.04,4.82998454]
[1760382744247,10.87647521,207.12,207.05,15.26591764]
[1760382744449,16.70239285,207.12,207.06,8.78]
[1760382744649,0.71,207.17,207.1,5.82591764]
[1760382744845,10.87647521,207.16,207.11,14.60591764]
[1760382745158,0.71,207.15,207.12,8.78]
[1760382745465,0.71,207.14,207.12,8.78]
[1760382745674,0.71,207.13,207.12,8.78]
[1760382746066,13.48386197,207.15,207.12,8.78]
[1760382746469,14.19386197,207.15,207.12,8.78]
[1760382747179,6.53591764,207.14,207.04,0.66]
[1760382747393,10.87647521,207.12,207.05,8.78]
[1760382747559,10.87647521,207.12,207.06,5.82591764]
[1760382747889,11.58647521,207.12,207.07,4.82928478]
[1760382748098,10.87647521,207.12,207.08,8.78]
[1760382748250,5.82591764,207.09,207.0,0.66]
[1760382748451,17.41239285,207.08,207.01,8.78]
[1760382748775,0.71,207.07,207.01,14.60591764]
[1760382749093,13.4036577,207.09,207.06,5.82591764]
[1760382749255,13.4036577,207.09,207.08,5.82591764]
[1760382749468,13.4036577,207.09,207.07,14.60591764]
[1760382749670,14.1136577,207.09,207.07,8.78]
[1760382750081,13.4036577,207.09,207.07,8.78]
[1760382750890,9.7036577,207.09,207.07,8.78]
[1760382752487,10.4136577,207.09,207.07,8.78]
[1760382752670,9.7036577,207.09,207.07,8.78]
[1760382752870,9.7036577,207.09,207.08,0.66]
[1760382753185,9.7036577,207.09,207.08,5.82591764]
[1760382754190,9.7036577,207.09,207.08,6.48591764]
[1760382754393,9.7036577,207.09,207.07,13.60925321]
[1760382754583,9.7036577,207.09,207.08,5.82591764]
[1760382754771,9.7036577,207.09,207.08,6.48591764]
[1760382755494,9.7036577,207.09,207.08,4.54099857]
[1760382755796,9.7036577,207.09,207.08,18.15005014]
[1760382756492,9.7036577,207.09,207.08,8.78]
[1760382756693,9.7036577,207.09,207.08,12.66099857]
[1760382756993,10.4136577,207.09,207.04,3.88099857]
[1760382757191,0.71,207.08,207.05,8.78]
[1760382757876,9.7036577,207.09,207.05,13.60962957]
[1760382758078,10.4136577,207.09,207.05,13.60962957]
[1760382758593,10.4136577,207.09,207.05,8.78]
[1760382758791,10.4136577,207.09,207.05,17.4907164]
[1760382758792,9.7036577,207.09,207.05,17.4907164]
[1760382758988,9.7036577,207.09,207.08,3.88099857]
[1760382759191,9.7036577,207.09,207.08,12.66099857]
[1760382759494,9.7036577,207.09,207.08,13.32099857]
[1760382759866,9.7036577,207.09,207.08,18.15005014]
[1760382763488,9.7036577,207.09,207.08,15.82149288]
[1760382769390,9.7036577,207.09,207.08,4.82905157]
[1760382769590,9.7036577,207.09,207.08,13.60905157]
[1760382771995,9.7036577,207.09,207.06,4.82951801]
[1760382772210,2.26244131,207.08,207.02,12.07576632]
[1760382772514,10.4136577,207.09,207.03,27.23816857]
[1760382772810,10.4136577,207.09,207.04,1.55244131]
[1760382773106,0.71,207.08,207.05,8.78]
[1760382773790,0.71,207.08,207.06,4.82951801]
[1760382773991,9.7036577,207.09,207.07,8.78]
[1760382774186,9.7036577,207.09,207.08,2.25244131]
[1760382774493,9.7036577,207.09,207.07,8.78]
[1760382774695,9.7036577,207.09,207.07,10.33244131]
[1760382774994,9.7036577,207.09,207.08,1.55244131]
[1760382775793,9.7036577,207.09,207.08,6.38149288]
[1760382776408,9.7036577,207.09,207.08,4.82905157]
[1760382776611,10.4136577,207.09,207.08,13.60905157]
[1760382776791,9.7036577,207.09,207.08,13.60905157]
[1760382778910,9.7036577,207.09,207.08,15.16149288]
[1760382779110,9.7036577,207.09,207.08,13.60905157]
[1760382779508,9.7036577,207.09,207.08,15.16149288]
[1760382780299,9.7036577,207.09,207.08,13.60905157]
[1760382780615,9.7036577,207.09,207.08,15.16149288]
[1760382781023,9.7036577,207.09,207.08,15.86149288]
[1760382782788,9.7036577,207.09,207.08,7.08149288]
[1760382782993,9.7036577,207.09,207.08,15.86149288]
[1760382784009,9.7036577,207.09,207.08,4.82905157]
[1760382784516,10.4136577,207.09,207.08,13.60905157]
[1760382784818,10.4136577,207.09,207.08,8.78]
[1760382785199,9.7036577,207.09,207.08,8.78]
[1760382786021,11.96609901,207.09,206.94,3.87319904]
[1760382786317,1.55244131,207.05,206.98,1.55244131]
[1760382786519,0.71,207.04,206.99,8.78]
[1760382786708,0.71,207.03,207.01,4.8306845]
[1760382787018,1.55244131,207.05,207.02,8.78]
[1760382787218,12.42891652,207.03,206.93,1.55244131]
[1760382787397,1.55244131,207.0,206.94,8.78]
[1760382787596,0.71,206.99,206.94,8.78]
[1760382787814,0.71,206.98,206.94,8.78]
[1760382788000,2.26244131,207.0,206.94,8.78]
[1760382788205,0.71,207.0,206.94,10.33244131]
[1760382788413,12.42891652,206.99,206.94,8.78]
[1760382788722,2.26244131,206.98,206.95,8.78]
[1760382788902,0.71,206.97,206.96,8.78]
[1760382789696,4.59742255,206.97,206.96,8.78]
[1760382789896,4.59742255,206.97,206.93,4.83255207]
[1760382790118,0.71,206.96,206.94,8.78]
[1760382790516,10.87647521,206.99,206.94,13.61230421]
[1760382790697,4.59742255,206.98,206.94,8.78]
[1760382790905,10.87647521,206.96,206.95,8.78]
[1760382791104,4.59742255,206.96,206.94,8.78]
[1760382791323,4.59742255,206.95,206.94,8.78]
[1760382791822,4.59742255,206.95,206.91,8.78]
[1760382791823,11.58647521,206.95,206.91,8.78]
[1760382791994,14.76389776,206.92,206.91,8.78]
[1760382792197,15.47389776,206.92,206.91,8.78]
[1760382793327,10.87647521,206.91,206.88,8.78]
[1760382793521,3.88742255,206.89,206.88,8.78]
[1760382793821,4.59742255,206.89,206.88,8.78]
[1760382794027,15.47389776,206.89,206.88,8.78]
[1760382794522,10.87647521,206.88,206.87,0.2]
[1760382794728,19.59761779,206.88,206.87,0.2]
[1760382795031,20.30761779,206.88,206.87,0.2]
[1760382795498,24.19504034,206.88,206.87,0.2]
[1760382795927,24.19504034,206.88,206.86,0.2]
[1760382796132,31.67647521,206.86,206.81,0.2]
[1760382796336,31.67647521,206.78,206.7,0.7]
[1760382796510,31.67647521,206.78,206.69,0.2]
[1760382796511,10.87647521,206.73,206.71,8.78]
[1760382796708,0.71,206.83,206.72,4.58742255]
[1760382796916,10.87647521,206.8,206.74,3.88742255]
[1760382797120,10.87647521,206.8,206.75,8.78]
[1760382797319,10.87647521,206.78,206.75,8.78]
[1760382797629,14.76389776,206.78,206.75,8.78]
[1760382797833,10.87647521,206.78,206.75,8.78]
[1760382798020,0.71,206.78,206.72,0.7]
[1760382798324,20.8,206.83,206.74,3.88742255]
[1760382798530,0.71,206.88,206.76,20.8]
[1760382798714,3.88742255,206.88,206.81,4.83535612]
[1760382799035,3.88742255,206.84,206.82,8.78]
[1760382799232,10.87647521,206.85,206.83,8.78]
[1760382799403,25.37742255,206.89,206.83,8.78]
[1760382799602,4.57742255,206.89,206.83,8.78]
[1760382799827,10.87647521,206.88,206.83,8.78]
[1760382800020,10.87647521,206.86,206.83,8.78]
[1760382802440,10.87647521,206.84,206.76,12.74119274]
[1760382802735,10.87647521,206.85,206.8,3.88742255]
[1760382802935,10.87647521,206.85,206.77,14.26629153]
[1760382802936,11.56647521,206.85,206.81,8.78]
[1760382803243,11.56647521,206.85,206.82,8.78]
[1760382803737,10.87647521,206.86,206.82,8.78]
[1760382804037,10.87647521,206.86,206.83,4.53742255]
[1760382804451,10.87647521,206.86,206.82,13.61505176]
[1760382805125,10.87647521,206.86,206.82,8.78]
[1760382805528,10.87647521,206.86,206.83,5.48483875]
[1760382805831,10.87647521,206.91,206.85,3.88742255]
[1760382806148,10.87647521,206.89,206.86,8.78]
[1760382806451,0.69,206.88,206.86,8.78]
[1760382806624,131.3,206.93,206.87,4.53742255]
[1760382806821,3.88742255,206.99,206.92,3.88742255]
[1760382807022,3.88742255,206.99,206.93,12.66742255]
[1760382807023,4.57742255,206.99,206.93,12.66742255]
[1760382807236,4.57742255,206.99,206.94,8.78]
[1760382807237,11.56647521,206.98,206.94,8.78]
[1760382807436,0.69,206.97,206.95,8.78]
[1760382807619,10.87647521,206.96,206.95,8.78]
[1760382807938,11.56647521,206.96,206.91,8.7204143]
[1760382808123,11.56647521,206.96,206.92,8.78]
[1760382808542,10.87647521,206.97,206.92,9.43]
[1760382808726,10.87647521,206.96,206.92,9.43]
[1760382808933,10.87647521,206.96,206.93,3.88742255]
[1760382809142,0.1,207.07,206.95,3.88742255]
[1760382809343,0.1,207.07,207.02,3.88742255]
[1760382809630,0.69,207.06,207.03,8.78]
[1760382809835,0.69,207.05,207.04,8.78]
[1760382810022,11.56647521,207.05,207.04,8.78]
[1760382810222,15.45389776,207.05,207.04,8.78]
[1760382810435,11.56647521,207.05,207.04,8.78]
[1760382810643,10.87647521,207.05,207.04,8.78]
[1760382811626,15.70624288,207.05,206.99,4.83108955]
[1760382811827,15.70624288,207.05,207.0,8.78]
[1760382812027,19.59366543,207.05,207.0,9.43]
[1760382812747,15.45389776,207.04,207.0,8.78]
[1760382813325,10.87647521,207.04,207.0,8.78]
[1760382813546,10.87647521,207.05,207.0,8.78]
[1760382813730,10.87647521,207.05,207.01,0.65]
[1760382814330,20.28366392,207.05,207.0,8.78]
[1760382814531,0.69,207.04,207.0,8.78]
[1760382815059,10.87647521,207.05,207.0,12.66742255]
[1760382815238,10.87647521,207.06,207.02,3.88742255]
[1760382815428,10.87647521,207.06,207.03,14.60623228]
[1760382816162,10.87647521,207.06,207.03,15.25623228]
[1760382817247,10.87647521,207.06,207.03,14.60623228]
[1760382817431,0.1,207.07,207.05,5.82623228]
[1760382817631,0.1,207.07,207.06,15.25623228]
[1760382818459,0.1,207.07,207.06,8.78]
[1760382818636,0.1,207.07,207.06,15.25623228]
[1760382819340,0.1,207.07,206.97,20.8]
[1760382819341,0.1,207.07,207.02,4.83033105]
[1760382819651,0.1,207.07,207.06,5.82623228]
[1760382819959,0.1,207.07,207.06,14.60623228]
[1760382820129,0.1,207.07,207.06,15.25623228]
[1760382821430,0.1,207.07,207.06,25.91198257]
[1760382821751,1e-08,207.07,207.06,25.91198257]
[1760382822051,1e-08,207.09,207.06,25.91198257]
[1760382822250,2.52157467,207.22,207.08,26.62623228]
[1760382822455,0.69,207.22,207.09,9.43]
[1760382822755,10.87647521,207.21,207.18,5.82623228]
[1760382822945,10.87647521,207.22,207.19,8.78]
[1760382823154,10.87647521,207.22,207.19,9.43]
[1760382823343,11.71122995,207.23,207.19,8.78]
[1760382823650,10.87647521,207.22,207.19,8.78]
[1760382824043,10.87647521,207.22,207.2,0.65]
[1760382824245,11.71122995,207.23,207.21,9.43]
[1760382824630,11.71122995,207.23,207.21,15.25623228]
[1760382825164,11.71122995,207.23,207.21,14.60623228]
[1760382825568,11.71122995,207.23,207.22,6.47623228]
[1760382825858,11.71122995,207.23,207.22,5.47578901]
[1760382826056,11.71122995,207.23,207.22,6.47623228]
[1760382826843,11.71122995,207.23,207.22,15.23623228]
[1760382827137,0.1,207.28,207.22,15.23623228]
[1760382827335,0.1,207.28,207.27,10.65085716]
[1760382827539,0.1,207.28,207.27,8.76]
[1760382827744,0.1,207.28,207.27,13.58462488]
[1760382827939,0.1,207.28,207.27,4.82462488]
[1760382828257,0.1,207.28,207.27,8.76]
[1760382828456,10.87647521,207.27,207.22,4.82578901]
[1760382828660,17.42270749,207.27,207.23,8.76]
[1760382828859,11.59647521,207.27,207.23,8.76]
[1760382829159,10.97647521,207.28,207.23,8.76]
[1760382829454,0.1,207.28,207.24,4.82532329]
[1760382829660,0.8,207.28,207.25,8.76]
[1760382829835,6.62623228,207.28,207.25,8.76]
[1760382830036,0.7,207.27,207.25,8.76]
[1760382830338,0.1,207.28,207.25,8.76]
[1760382831039,0.7,207.27,207.25,8.76]
[1760382831235,5.92623228,207.28,207.25,8.76]
[1760382831556,0.1,207.28,207.25,13.58496814]
[1760382831869,0.1,207.28,207.25,25.64769431]
[1760382832250,0.1,207.28,207.25,26.29769431]
[1760382832766,0.1,207.28,207.25,25.64769431]
[1760382833369,2.51973324,207.39,207.27,5.82623228]
[1760382833670,10.87647521,207.38,207.33,5.82623228]
[1760382833851,10.87647521,207.38,207.34,8.76]
[1760382834653,11.57647521,207.38,207.34,8.76]
[1760382834959,20.8,207.35,207.34,8.76]
[1760382836165,10.87647521,207.34,207.28,12.71098031]
[1760382836365,10.87647521,207.34,207.3,5.82623228]
[1760382836543,10.87647521,207.34,207.31,8.76]
[1760382837146,10.87647521,207.35,207.31,8.76]
[1760382837672,11.57647521,207.35,207.31,13.58368174]
[1760382838045,5.82623228,207.33,207.29,4.82392782]
[1760382838274,16.70270749,207.33,207.3,8.76]
[1760382838569,17.40270749,207.33,207.3,8.76]
[1760382838859,11.57647521,207.33,207.3,8.76]
[1760382839264,16.70270749,207.33,207.26,0.65]
[1760382839460,20.8,207.35,207.28,5.82623228]
[1760382839664,20.8,207.35,207.29,8.76]
[1760382839665,16.70270749,207.34,207.29,8.76]
[1760382839857,17.40270749,207.34,207.27,5.82623228]
[1760382840059,10.87647521,207.31,207.24,0.65]
[1760382840255,10.87647521,207.31,207.25,14.58623228]
[1760382840573,0.7,207.34,207.28,5.82623228]
[1760382840759,20.8,207.36,207.3,5.82623228]
[1760382840957,20.8,207.36,207.32,5.82623228]
[1760382841164,14.304,207.43,207.32,4.82346131]
[1760382841165,0.7,207.4,207.32,4.82346131]
[1760382841471,5.82623228,207.35,207.26,18.53808571]
[1760382841657,5.82623228,207.35,207.16,19.99999999]
[1760382841658,5.82623228,207.27,207.16,19.99999999]
[1760382841858,5.82623228,207.27,207.21,5.82623228]
[1760382841859,0.7,207.27,207.21,5.82623228]
[1760382842170,0.7,207.27,207.06,5.82623228]
[1760382842171,5.82623228,207.22,207.14,19.99999999]
[1760382842350,5.82623228,207.17,207.15,8.86]
[1760382842546,6.52623228,207.17,207.16,8.86]
[1760382842749,6.52623228,207.17,206.97,19.99999999]
[1760382842750,31.67647521,207.13,207.0,8.86]
[1760382842951,10.87647521,207.1,207.04,5.82623228]
[1760382843264,5.82623228,207.05,206.98,3.76170054]
[1760382843455,5.82623228,207.0,206.98,3.76170054]
[1760382843780,10.87647521,207.07,206.85,4.83442107]
[1760382843781,10.87647521,206.95,206.85,4.83442107]
[1760382843986,33.53601489,206.99,206.89,5.82623228]
[1760382844162,0.7,206.98,206.8,36.91576212]
[1760382844481,5.82623228,206.87,206.8,4.83540826]
[1760382844651,0.7,206.86,206.74,4.83699332]
[1760382844852,0.7,206.89,206.81,5.82623228]
[1760382845155,20.8,206.91,206.84,16.92129181]
[1760382845384,12.73601489,206.99,206.93,20.8]
[1760382845714,19.99999999,207.16,207.03,5.82623228]
[1760382845715,0.7,207.11,207.03,5.82623228]
[1760382845878,20.8,207.09,207.04,9.16]
[1760382846178,0.7,207.11,207.05,9.16]
[1760382846391,5.82623228,207.14,207.06,5.82623228]
[1760382846599,5.82623228,207.1,207.03,5.82623228]
[1760382846753,10.87647521,207.09,207.04,9.16]
[1760382846962,10.87647521,207.07,207.05,9.16]
[1760382847163,10.87647521,207.07,207.01,4.8306845]
[1760382847480,6.52623228,207.09,207.02,9.16]
[1760382847881,10.87647521,207.07,207.03,9.16]
[1760382848078,10.87647521,207.05,207.03,9.16]
[1760382848267,10.87647521,207.05,207.01,10.65691678]
[1760382848465,10.87647521,207.05,207.02,9.16]
[1760382848870,10.87647521,207.08,207.02,14.98623228]
[1760382849284,10.87647521,207.08,207.03,4.83021784]
[1760382849484,0.7,207.07,207.03,4.83021784]
[1760382849681,10.87647521,207.08,207.03,4.83021784]
[1760382849886,10.87647521,207.08,207.03,10.65645012]
[1760382850299,20.8,207.09,207.03,10.65645012]
[1760382850503,10.87647521,207.08,207.04,9.14]
[1760382850873,11.57647521,207.08,207.05,4.82975126]
[1760382851082,5.82623228,207.2,207.05,16.90412942]
[1760382851296,6.52623228,207.18,207.1,5.82623228]
[1760382851470,5.82623228,207.11,207.05,16.90412942]
[1760382851791,21.5,207.17,207.06,14.96623228]
[1760382851792,10.87647521,207.1,207.06,14.96623228]
[1760382852185,10.87647521,207.11,207.07,5.82623228]
[1760382852502,10.87647521,207.11,207.06,14.96623228]
[1760382852676,0.7,207.12,207.07,4.82928478]
[1760382852875,0.7,207.11,207.07,10.65551706]
[1760382853173,10.87647521,207.09,207.07,4.82928478]
[1760382853380,11.57647521,207.09,207.07,4.82928478]
[1760382853577,0.7,207.08,207.06,9.14]
[1760382853785,10.87647521,207.07,207.04,4.82979079]
[1760382853985,10.87647521,207.05,207.0,5.82623228]
[1760382854194,10.87647521,207.05,206.96,0.65]
[1760382854195,10.87647521,207.05,207.01,14.98623228]
[1760382854501,10.87647521,207.05,207.02,5.82623228]
[1760382854702,10.87647521,207.08,207.04,5.82623228]
[1760382854891,10.87647521,207.07,207.05,9.16]
[1760382855494,0.7,207.12,207.05,14.98623228]
[1760382855700,31.67647521,207.11,207.07,5.82623228]
[1760382855906,31.67647521,207.09,207.08,9.16]